[Event "EYCC Open-U18 2019"]
[Site "Bratislava"]
[Date "2019.08.03"]
[Round "2.33"]
[White "Nordquelle, Daniel"]
[Black "Miesbauer, Jan"]
[Result "1/2-1/2"]
[ECO "B31"]
[WhiteElo "2181"]
[BlackElo "2409"]
[Annotator "NA"]
[PlyCount "117"]
[EventDate "2019.08.02"]
[EventType "swiss"]
[EventCountry "SVK"]
[SourceTitle "playchess.com"]
[Source "ChessBase"]
[SourceQuality "1"]
[TimeControl "40/5400+30:1800+30"]

1. e4 {[%emt 0:00:00]} c5 {[%emt 0:00:00]} 2. Nf3 {[%emt 0:00:00]} Nc6 {[%emt 0:00:00]} 3. Bb5 {[%emt 0:00:00]} g6 {[%emt 0:00:11]} 4. Bxc6 {[%emt 0:00:00]} dxc6 {[%emt 0:00:18]} 5. d3 {[%emt 0:00:05]} Bg7 {[%emt 0:00:37]} 6. h3 {[%emt 0:01:36]} Nf6 {[%emt 0:00:58]} 7. O-O {[%emt 0:01:44]} Nd7 {[%emt 0:00:58]} 8. Nc3 {[%emt 0:00:37]} e5 {[%emt 0:01:26]} 9. Be3 {[%emt 0:00:18]} b6 {[%emt 0:02:58]} 10. Qd2 {[%emt 0:00:30]} h6 {[%emt 0:00:51]} 11. a3 {[%emt 0:01:12]} Qe7 {[%emt 0:01:36]} 12. Rfb1 {[%emt 0:11:11]} f5 {[%emt 0:04:55]} 13. exf5 {[%emt 0:04:10]} gxf5 {[%emt 0:00:09]} 14. Re1 {[%emt 0:11:46]} Qd6 {[%emt 0:00:58]} 15. Nh4 {[%emt 0:03:11]} Qf6 {[%emt 0:01:24]} 16. g3 {[%emt 0:01:23]} O-O {[%emt 0:06:46]} 17. f4 {[%emt 0:00:57]} Re8 {[%emt 0:05:03]} 18. Nf3 {[%emt 0:02:42]} Ba6 {[%emt 0:06:29]} 19. Kh2 {[%emt 0:14:39]} Rad8 {[%emt 0:01:01]} 20. Qf2 {[%emt 0:02:57]} Re7 {[%emt 0:05:46]} 21. fxe5 {[%emt 0:15:06]} Nxe5 {[%emt 0:00:13]} 22. Nh4 {[%emt 0:00:13]} Rf8 {[%emt 0:02:59]} 23. Rf1 {[%emt 0:02:15]} Bc8 {[%emt 0:00:32]} 24. Rae1 {[%emt 0:00:37]} Ng6 {[%emt 0:03:01]} 25. Nxg6 {[%emt 0:02:27]} Qxg6 {[%emt 0:00:06]} 26. Bf4 {[%emt 0:00:05]} Rfe8 {[%emt 0:00:43]} 27. Rxe7 {[%emt 0:00:19]} Rxe7 {[%emt 0:00:05]} 28. Re1 {[%emt 0:00:15]} Qe8 {[%emt 0:03:05]} 29. Rxe7 {[%emt 0:00:58]} Qxe7 {[%emt 0:00:04]} 30. Qf3 {[%emt 0:02:47]} Qd7 {[%emt 0:12:52]} 31. Nd1 {[%emt 0:03:04]} Kh7 {[%emt 0:07:47]} 32. b3 {[%emt 0:00:26]} b5 {[%emt 0:03:25]} 33. Ne3 {[%emt 0:03:18]} Qe6 {[%emt 0:01:50]} 34. Bb8 {[%emt 0:03:56]} Bd4 {[%emt 0:01:23]} 35. Ng2 {[%emt 0:01:22]} a6 {[%emt 0:08:10]} 36. h4 {[%emt 0:01:35]} Bd7 {[%emt 0:01:31]} 37. Bc7 {[%emt 0:02:36]} c4 {[%emt 0:03:32]} 38. Nf4 {[%emt 0:02:04]} Qf7 {[%emt 0:02:09]} 39. dxc4 {[%emt 0:05:05]} bxc4 {[%emt 0:00:05]} 40. b4 {[%emt 0:00:00]} Qe8 {[%emt 0:00:00]} 41. Qd1 {[%emt 0:06:39]} Bf6 {[%emt 0:16:59]} 42. Qd2 {[%emt 0:04:45]} Bc8 {[%emt 0:01:18]} 43. Qd6 {[%emt 0:01:42]} Be7 {[%emt 0:02:26]} 44. Qd4 {[%emt 0:03:27]} Qf7 {[%emt 0:00:21]} 45. Be5 {[%emt 0:00:30]} Kg8 {[%emt 0:03:46]} 46. Kh3 {[%emt 0:06:56]} Kh7 {[%emt 0:05:15]} 47. Qa7 {[%emt 0:00:29]} Kg8 {[%emt 0:00:37]} 48. Qc7 {[%emt 0:03:02]} Qe8 {[%emt 0:01:07]} 49. Bc3 {[%emt 0:00:22]} Bf8 {[%emt 0:01:15]} 50. Be5 {[%emt 0:04:04]} Qd7 {[%emt 0:00:36]} 51. Qxd7 {[%emt 0:01:48]} Bxd7 {[%emt 0:00:02]} 52. Bd4 {[%emt 0:00:45]} Kf7 {[%emt 0:00:34]} 53. Kg2 {[%emt 0:00:16]} Be6 {[%emt 0:00:51]} 54. Kf2 {[%emt 0:00:51]} Bd5 {[%emt 0:00:39]} 55. Ke3 {[%emt 0:00:33]} Bd6 {[%emt 0:02:26]} 56. c3 {[%emt 0:01:59]} Be4 {[%emt 0:01:25]} 57. Bc5 {[%emt 0:01:05]} Be5 {[%emt 0:00:26]} 58. Bd4 {[%emt 0:00:05]} Bd6 {[%emt 0:01:06]} 59. Bc5 {[%emt 0:00:18]} 1/2-1/2

[Event "EYCC Open-U18 2019"]
[Site "Bratislava"]
[Date "2019.08.03"]
[Round "2.34"]
[White "Easwaralingam, Adesh"]
[Black "Parkhov, Yair"]
[Result "1/2-1/2"]
[ECO "B92"]
[WhiteElo "2113"]
[BlackElo "2354"]
[Annotator "NA"]
[PlyCount "50"]
[EventDate "2019.08.02"]
[EventType "swiss"]
[EventCountry "SVK"]
[SourceTitle "playchess.com"]
[Source "ChessBase"]
[SourceQuality "1"]
[TimeControl "40/5400+30:1800+30"]

1. e4 {[%emt 0:00:00]} c5 {[%emt 0:00:00]} 2. Nf3 {[%emt 0:00:00]} d6 {[%emt 0:00:00]} 3. d4 {[%emt 0:00:00]} cxd4 {[%emt 0:00:00]} 4. Nxd4 {[%emt 0:00:01]} Nf6 {[%emt 0:00:00]} 5. Nc3 {[%emt 0:00:05]} a6 {[%emt 0:00:00]} 6. Be2 {[%emt 0:00:25]} e5 {[%emt 0:00:19]} 7. Nb3 {[%emt 0:00:07]} Be7 {[%emt 0:00:13]} 8. Bg5 {[%emt 0:00:08]} Be6 {[%emt 0:01:59]} 9. Bxf6 {[%emt 0:00:55]} Bxf6 {[%emt 0:00:55]} 10. Qd3 {[%emt 0:00:09]} Be7 {[%emt 0:02:20]} 11. Nd5 {[%emt 0:06:58]} Nd7 {[%emt 0:05:33]} 12. O-O-O {[%emt 0:12:35]} Bxd5 {[%emt 0:06:00]} 13. Qxd5 {[%emt 0:04:55]} Qc7 {[%emt 0:08:38]} 14. Qd3 {[%emt 0:10:12]} O-O {[%emt 0:01:09]} 15. h4 {[%emt 0:07:43]} b5 {[%emt 0:08:02]} 16. Bg4 {[%emt 0:05:44]} Nb6 {[%emt 0:04:47]} 17. Nd2 {[%emt 0:01:40]} Rfd8 {[%emt 0:09:26]} 18. Qe2 {[%emt 0:17:16]} Nc4 {[%emt 0:05:36]} 19. Rh3 {[%emt 0:03:56]} Rab8 {[%emt 0:04:26]} 20. Nf1 {[%emt 0:05:55]} Qb6 {[%emt 0:11:05]} 21. Rdd3 {[%emt 0:01:22]} g6 {[%emt 0:09:46]} 22. Ne3 {[%emt 0:03:37]} Nxe3 {[%emt 0:00:07]} 23. Rdxe3 {[%emt 0:04:32]} Bf8 {[%emt 0:05:16]} 24. Rd3 {[%emt 0:00:39]} Rb7 {[%emt 0:01:27]} 25. h5 {[%emt 0:04:05]} Rc7 {[%emt 0:01:07]} 1/2-1/2

[Event "EYCC Open-U18 2019"]
[Site "Bratislava"]
[Date "2019.08.03"]
[Round "2.35"]
[White "Tisaj, Domen"]
[Black "Bulockin, Martin"]
[Result "1/2-1/2"]
[ECO "E46"]
[WhiteElo "2232"]
[BlackElo "2210"]
[Annotator "NA"]
[PlyCount "94"]
[EventDate "2019.08.02"]
[EventType "swiss"]
[EventCountry "SVK"]
[SourceTitle "playchess.com"]
[Source "ChessBase"]
[SourceQuality "1"]
[TimeControl "40/5400+30:1800+30"]

1. d4 {[%emt 0:00:00]} Nf6 {[%emt 0:00:00]} 2. c4 {[%emt 0:00:00]} e6 {[%emt 0:00:15]} 3. Nc3 {[%emt 0:00:00]} Bb4 {[%emt 0:00:21]} 4. e3 {[%emt 0:00:00]} O-O {[%emt 0:00:17]} 5. Nge2 {[%emt 0:00:00]} d5 {[%emt 0:01:35]} 6. a3 {[%emt 0:00:00]} Bd6 {[%emt 0:00:24]} 7. Ng3 {[%emt 0:00:05]} c6 {[%emt 0:04:58]} 8. Qc2 {[%emt 0:03:59]} Nbd7 {[%emt 0:08:37]} 9. b4 {[%emt 0:05:10]} dxc4 {[%emt 0:17:27]} 10. Bxc4 {[%emt 0:01:36]} e5 {[%emt 0:00:50]} 11. Nce2 {[%emt 0:02:24]} Nb6 {[%emt 0:10:54]} 12. Bd3 {[%emt 0:02:33]} a5 {[%emt 0:00:52]} 13. Rb1 {[%emt 0:03:26]} axb4 {[%emt 0:02:41]} 14. axb4 {[%emt 0:00:11]} Nbd5 {[%emt 0:04:53]} 15. Bd2 {[%emt 0:02:08]} exd4 {[%emt 0:04:49]} 16. Nxd4 {[%emt 0:00:25]} Qb6 {[%emt 0:03:10]} 17. b5 {[%emt 0:09:01]} c5 {[%emt 0:01:56]} 18. Ndf5 {[%emt 0:03:22]} Be6 {[%emt 0:03:56]} 19. Nxd6 {[%emt 0:02:20]} Qxd6 {[%emt 0:00:01]} 20. O-O {[%emt 0:00:52]} c4 {[%emt 0:09:17]} 21. Bf5 {[%emt 0:08:28]} Rfc8 {[%emt 0:06:11]} 22. e4 {[%emt 0:01:36]} c3 {[%emt 0:03:44]} 23. Bxe6 {[%emt 0:07:52]} Qxe6 {[%emt 0:03:37]} 24. Bg5 {[%emt 0:04:12]} Nb6 {[%emt 0:01:25]} 25. Rb3 {[%emt 0:01:32]} h6 {[%emt 0:02:19]} 26. Bf4 {[%emt 0:05:27]} Ra4 {[%emt 0:02:37]} 27. f3 {[%emt 0:03:47]} Rac4 {[%emt 0:00:49]} 28. Rd1 {[%emt 0:01:17]} Ne8 {[%emt 0:01:12]} 29. Nf5 {[%emt 0:01:12]} Na4 {[%emt 0:00:54]} 30. Ne3 {[%emt 0:02:57]} R4c5 {[%emt 0:00:59]} 31. Rd4 {[%emt 0:04:44]} Nb6 {[%emt 0:00:36]} 32. Rd3 {[%emt 0:02:21]} Nc4 {[%emt 0:03:21]} 33. Rbxc3 {[%emt 0:06:55]} g5 {[%emt 0:00:19]} 34. Bg3 {[%emt 0:02:46]} Nxe3 {[%emt 0:00:05]} 35. Rxe3 {[%emt 0:00:07]} Rxc3 {[%emt 0:00:34]} 36. Rxc3 {[%emt 0:00:08]} Qb6+ {[%emt 0:00:28]} 37. Bf2 {[%emt 0:00:19]} Rxc3 {[%emt 0:00:01]} 38. Qxc3 {[%emt 0:00:09]} Qxb5 {[%emt 0:00:01]} 39. h4 {[%emt 0:00:24]} gxh4 {[%emt 0:02:00]} 40. Bxh4 {[%emt 0:00:00]} Qd7 {[%emt 0:00:00]} 41. Qe5 {[%emt 0:02:09]} Qe6 {[%emt 0:04:44]} 42. Qd4 {[%emt 0:02:06]} Qd6 {[%emt 0:01:13]} 43. Qe3 {[%emt 0:01:20]} b5 {[%emt 0:02:09]} 44. Be1 {[%emt 0:02:11]} Ng7 {[%emt 0:03:18]} 45. Bc3 {[%emt 0:02:08]} Kh7 {[%emt 0:02:37]} 46. e5 {[%emt 0:02:35]} Qd5 {[%emt 0:02:35]} 47. Bd2 {[%emt 0:01:05]} Nf5 1/2-1/2

[Event "EYCC Open-U18 2019"]
[Site "Bratislava"]
[Date "2019.08.03"]
[Round "2.36"]
[White "Triantos, Konstantinos"]
[Black "Jakab, Bela"]
[Result "1/2-1/2"]
[ECO "B09"]
[WhiteElo "2129"]
[BlackElo "2278"]
[Annotator "NA"]
[PlyCount "83"]
[EventDate "2019.08.02"]
[EventType "swiss"]
[EventCountry "SVK"]
[SourceTitle "playchess.com"]
[Source "ChessBase"]
[SourceQuality "1"]
[TimeControl "40/5400+30:1800+30"]

1. e4 {[%emt 0:00:00]} g6 {[%emt 0:00:00]} 2. d4 {[%emt 0:00:01]} Bg7 {[%emt 0:00:00]} 3. Nc3 {[%emt 0:00:25]} d6 {[%emt 0:00:00]} 4. f4 {[%emt 0:03:04]} Nf6 {[%emt 0:00:15]} 5. Nf3 {[%emt 0:00:58]} O-O {[%emt 0:01:07]} 6. Bd3 {[%emt 0:02:43]} c5 {[%emt 0:02:49]} 7. dxc5 {[%emt 0:01:56]} dxc5 {[%emt 0:00:16]} 8. e5 {[%emt 0:06:40]} Nd5 {[%emt 0:03:45]} 9. Nxd5 {[%emt 0:00:40]} Qxd5 {[%emt 0:00:06]} 10. Qe2 {[%emt 0:01:35]} Nc6 {[%emt 0:01:32]} 11. c3 {[%emt 0:05:22]} Bf5 {[%emt 0:04:41]} 12. Bxf5 {[%emt 0:04:37]} gxf5 {[%emt 0:00:06]} 13. O-O {[%emt 0:03:41]} Rad8 {[%emt 0:12:28]} 14. Be3 {[%emt 0:03:24]} b6 {[%emt 0:00:48]} 15. Rfd1 {[%emt 0:04:20]} Qe6 {[%emt 0:00:15]} 16. Ng5 {[%emt 0:12:51]} Rxd1+ {[%emt 0:03:28]} 17. Qxd1 {[%emt 0:00:13]} Qc4 {[%emt 0:07:29]} 18. Qc2 {[%emt 0:04:02]} h6 {[%emt 0:02:20]} 19. b3 {[%emt 0:04:09]} Qa6 {[%emt 0:16:33]} 20. Nf3 {[%emt 0:00:27]} Qc8 {[%emt 0:01:36]} 21. Rd1 {[%emt 0:04:39]} f6 {[%emt 0:03:58]} 22. Qd3 {[%emt 0:05:29]} fxe5 {[%emt 0:03:45]} 23. fxe5 {[%emt 0:01:34]} Rd8 {[%emt 0:00:32]} 24. Qc4+ {[%emt 0:00:33]} e6 {[%emt 0:00:30]} 25. Rxd8+ {[%emt 0:04:28]} Nxd8 {[%emt 0:00:05]} 26. b4 {[%emt 0:00:53]} Bf8 {[%emt 0:13:17]} 27. h3 {[%emt 0:08:07]} Qc6 {[%emt 0:02:37]} 28. bxc5 {[%emt 0:04:21]} bxc5 {[%emt 0:00:41]} 29. Nh4 {[%emt 0:02:41]} Nf7 {[%emt 0:04:18]} 30. Ng6 {[%emt 0:01:43]} a6 {[%emt 0:02:49]} 31. Qh4 {[%emt 0:04:30]} Qe8 {[%emt 0:03:41]} 32. Qf6 {[%emt 0:02:33]} Bg7 {[%emt 0:03:19]} 33. Ne7+ {[%emt 0:00:31]} Kf8 {[%emt 0:00:20]} 34. Ng6+ {[%emt 0:00:04]} Kg8 {[%emt 0:00:03]} 35. Ne7+ {[%emt 0:03:11]} Kf8 {[%emt 0:00:05]} 36. Ng6+ {[%emt 0:00:06]} Kg8 {[%emt 0:00:04]} 37. Qh4 {[%emt 0:01:17]} Nxe5 {[%emt 0:01:26]} 38. Nxe5 {[%emt 0:00:15]} Bxe5 {[%emt 0:00:05]} 39. Bxc5 {[%emt 0:00:48]} Bxc3 {[%emt 0:02:23]} 40. Qc4 {[%emt 0:00:00]} Be5 {[%emt 0:00:00]} 41. Qxa6 {[%emt 0:01:18]} Qd7 {[%emt 0:02:44]} 42. Be3 {[%emt 0:13:49]} 1/2-1/2

[Event "EYCC Open-U18 2019"]
[Site "Bratislava"]
[Date "2019.08.03"]
[Round "2.37"]
[White "Pektas, Yigit"]
[Black "Heimisson, Hilmir Freyr"]
[Result "1-0"]
[ECO "A40"]
[WhiteElo "2111"]
[BlackElo "2279"]
[Annotator "NA"]
[PlyCount "93"]
[EventDate "2019.08.02"]
[EventType "swiss"]
[EventCountry "SVK"]
[SourceTitle "playchess.com"]
[Source "ChessBase"]
[SourceQuality "1"]
[TimeControl "40/5400+30:1800+30"]

1. d4 {[%emt 0:00:00]} e6 {[%emt 0:00:00]} 2. c4 {[%emt 0:00:00]} b6 {[%emt 0:00:00]} 3. e4 {[%emt 0:09:08]} Bb4+ {[%emt 0:00:03]} 4. Nd2 {[%emt 0:01:08]} Bb7 {[%emt 0:02:04]} 5. Bd3 {[%emt 0:02:51]} f5 {[%emt 0:28:33]} 6. d5 {[%emt 0:14:09]} fxe4 {[%emt 0:09:24]} 7. Qh5+ {[%emt 0:01:17]} Kf8 {[%emt 0:00:52]} 8. Bxe4 {[%emt 0:03:42]} Nf6 {[%emt 0:00:07]} 9. Qf3 {[%emt 0:00:32]} exd5 {[%emt 0:04:35]} 10. Bc2 {[%emt 0:01:52]} Nc6 {[%emt 0:10:50]} 11. Ne2 {[%emt 0:01:35]} Ne5 {[%emt 0:00:51]} 12. Qf4 {[%emt 0:00:38]} Bd6 {[%emt 0:09:05]} 13. O-O {[%emt 0:03:17]} Nxc4 {[%emt 0:01:52]} 14. Qg5 {[%emt 0:01:10]} Qe8 {[%emt 0:04:57]} 15. Ng3 {[%emt 0:02:43]} Qf7 {[%emt 0:18:10]} 16. Nf3 {[%emt 0:06:37]} Re8 {[%emt 0:00:28]} 17. b3 {[%emt 0:03:03]} Ne5 {[%emt 0:01:44]} 18. Nh4 {[%emt 0:00:32]} c5 {[%emt 0:01:02]} 19. Bf4 {[%emt 0:01:43]} Ne4 {[%emt 0:01:27]} 20. Bxe4 {[%emt 0:02:26]} dxe4 {[%emt 0:00:03]} 21. Nhf5 {[%emt 0:23:15]} Bc7 {[%emt 0:00:31]} 22. Nh5 {[%emt 0:05:15]} Rg8 {[%emt 0:01:04]} 23. f3 {[%emt 0:03:07]} exf3 {[%emt 0:00:35]} 24. Rae1 {[%emt 0:00:34]} fxg2 {[%emt 0:01:44]} 25. Bxe5 {[%emt 0:01:39]} Rxe5 {[%emt 0:01:10]} 26. Qg4 {[%emt 0:06:09]} gxf1=Q+ {[%emt 0:01:03]} 27. Rxf1 {[%emt 0:00:05]} Qg6 {[%emt 0:00:34]} 28. Nh4+ {[%emt 0:00:36]} Ke8 {[%emt 0:00:34]} 29. Nxg6 {[%emt 0:00:07]} hxg6 {[%emt 0:00:31]} 30. Qxg6+ {[%emt 0:00:19]} Kd8 {[%emt 0:00:12]} 31. Nf6 {[%emt 0:00:33]} gxf6 {[%emt 0:00:44]} 32. Qxg8+ {[%emt 0:00:06]} Re8 {[%emt 0:00:01]} 33. Qg7 {[%emt 0:00:38]} Be5 {[%emt 0:00:14]} 34. Rd1 {[%emt 0:01:00]} Bc6 {[%emt 0:00:26]} 35. h4 {[%emt 0:00:24]} Re7 {[%emt 0:00:28]} 36. Qg8+ {[%emt 0:00:57]} Re8 {[%emt 0:00:23]} 37. Qg6 {[%emt 0:00:58]} Rh8 {[%emt 0:01:27]} 38. h5 {[%emt 0:00:19]} Kc7 {[%emt 0:00:27]} 39. h6 {[%emt 0:00:29]} f5 {[%emt 0:00:28]} 40. Qxf5 {[%emt 0:00:00]} Rg8+ {[%emt 0:00:00]} 41. Kf2 {[%emt 0:07:20]} Bg3+ {[%emt 0:08:58]} 42. Ke2 {[%emt 0:00:57]} Re8+ {[%emt 0:00:20]} 43. Kf1 {[%emt 0:03:08]} Re3 {[%emt 0:03:08]} 44. h7 {[%emt 0:03:42]} Rf3+ {[%emt 0:01:27]} 45. Qxf3 {[%emt 0:00:06]} Bxf3 {[%emt 0:00:01]} 46. Re1 {[%emt 0:00:08]} Bxe1 {[%emt 0:00:53]} 47. Kxe1 {[%emt 0:00:40]} 1-0

[Event "EYCC Open-U18 2019"]
[Site "Bratislava"]
[Date "2019.08.03"]
[Round "2.38"]
[White "Castillo Dalmau, Albert"]
[Black "Alivodic, Dario"]
[Result "1-0"]
[ECO "A06"]
[WhiteElo "2252"]
[BlackElo "2120"]
[Annotator "NA"]
[PlyCount "53"]
[EventDate "2019.08.02"]
[EventType "swiss"]
[EventCountry "SVK"]
[SourceTitle "playchess.com"]
[Source "ChessBase"]
[SourceQuality "1"]
[TimeControl "40/5400+30:1800+30"]

1. Nf3 {[%emt 0:00:00]} d5 {[%emt 0:00:00]} 2. g3 {[%emt 0:00:00]} c6 {[%emt 0:00:00]} 3. Bg2 {[%emt 0:00:00]} Nf6 {[%emt 0:00:00]} 4. c4 {[%emt 0:00:28]} dxc4 {[%emt 0:00:43]} 5. O-O {[%emt 0:00:31]} Nbd7 {[%emt 0:01:38]} 6. a4 {[%emt 0:01:55]} a5 {[%emt 0:02:13]} 7. b3 {[%emt 0:09:16]} cxb3 {[%emt 0:00:48]} 8. Qxb3 {[%emt 0:01:40]} g6 {[%emt 0:18:48]} 9. Ng5 {[%emt 0:09:26]} Ne5 {[%emt 0:06:00]} 10. Bb2 {[%emt 0:20:24]} h6 {[%emt 0:00:20]} 11. d4 {[%emt 0:04:14]} hxg5 {[%emt 0:01:17]} 12. dxe5 {[%emt 0:00:02]} Nh5 {[%emt 0:05:40]} 13. Nc3 {[%emt 0:05:10]} Ng7 {[%emt 0:06:50]} 14. Ne4 {[%emt 0:00:52]} Ne6 {[%emt 0:00:13]} 15. Rfd1 {[%emt 0:01:05]} Bd7 {[%emt 0:00:27]} 16. Rd2 {[%emt 0:04:20]} Qb8 {[%emt 0:02:03]} 17. Rad1 {[%emt 0:01:30]} Bc8 {[%emt 0:00:15]} 18. Qb6 {[%emt 0:02:11]} f5 {[%emt 0:00:52]} 19. exf6 {[%emt 0:00:45]} Rh6 {[%emt 0:01:35]} 20. Rd8+ {[%emt 0:08:41]} Kf7 {[%emt 0:03:44]} 21. fxe7 {[%emt 0:05:58]} Bxe7 {[%emt 0:00:24]} 22. Nd6+ {[%emt 0:00:19]} Bxd6 {[%emt 0:00:24]} 23. R8xd6 {[%emt 0:00:07]} Qa7 {[%emt 0:05:48]} 24. Qb3 {[%emt 0:00:14]} Qc5 {[%emt 0:00:12]} 25. Rd7+ {[%emt 0:02:06]} Bxd7 {[%emt 0:01:21]} 26. Rxd7+ {[%emt 0:00:02]} Kf8 {[%emt 0:00:08]} 27. Qxe6 {[%emt 0:00:11]} 1-0

[Event "EYCC Open-U18 2019"]
[Site "Bratislava"]
[Date "2019.08.03"]
[Round "2.39"]
[White "Joensson, Jacob"]
[Black "Kizatbay, Abyl"]
[Result "1/2-1/2"]
[ECO "A56"]
[WhiteElo "1981"]
[BlackElo "2216"]
[Annotator "NA"]
[PlyCount "73"]
[EventDate "2019.08.02"]
[EventType "swiss"]
[EventCountry "SVK"]
[SourceTitle "playchess.com"]
[Source "ChessBase"]
[SourceQuality "1"]
[TimeControl "40/5400+30:1800+30"]

1. d4 {[%emt 0:00:00]} Nf6 {[%emt 0:00:00]} 2. c4 {[%emt 0:00:00]} c5 {[%emt 0:00:00]} 3. Nf3 {[%emt 0:00:00]} cxd4 {[%emt 0:02:41]} 4. Nxd4 {[%emt 0:00:00]} e5 {[%emt 0:01:45]} 5. Nb5 {[%emt 0:00:54]} d5 {[%emt 0:00:53]} 6. cxd5 {[%emt 0:01:12]} Bc5 {[%emt 0:00:48]} 7. N5c3 {[%emt 0:00:16]} O-O {[%emt 0:01:01]} 8. g3 {[%emt 0:01:51]} Qb6 {[%emt 0:08:49]} 9. e3 {[%emt 0:01:50]} Bg4 {[%emt 0:03:42]} 10. Be2 {[%emt 0:02:15]} Bh3 {[%emt 0:03:38]} 11. g4 {[%emt 0:01:28]} h5 {[%emt 0:24:47]} 12. gxh5 {[%emt 0:04:47]} Rd8 {[%emt 0:01:26]} 13. Rg1 {[%emt 0:10:50]} Na6 {[%emt 0:04:00]} 14. a3 {[%emt 0:16:36]} Rac8 {[%emt 0:11:27]} 15. Bxa6 {[%emt 0:19:54]} bxa6 {[%emt 0:09:35]} 16. Qf3 {[%emt 0:01:00]} Bd7 {[%emt 0:00:21]} 17. b4 {[%emt 0:02:44]} Bf8 {[%emt 0:03:29]} 18. e4 {[%emt 0:04:18]} a5 {[%emt 0:01:51]} 19. Be3 {[%emt 0:05:55]} Qa6 {[%emt 0:00:06]} 20. b5 {[%emt 0:06:59]} Qd6 {[%emt 0:04:17]} 21. Kf1 {[%emt 0:01:49]} Kh8 {[%emt 0:00:40]} 22. Bxa7 {[%emt 0:01:18]} Qc7 {[%emt 0:02:29]} 23. b6 {[%emt 0:01:05]} Qc4+ {[%emt 0:00:10]} 24. Qe2 {[%emt 0:01:54]} Qb3 {[%emt 0:02:37]} 25. Rg3 {[%emt 0:01:06]} Bc5 {[%emt 0:00:55]} 26. Nd2 {[%emt 0:02:06]} Qc2 {[%emt 0:00:59]} 27. Kg2 {[%emt 0:01:40]} Bd4 {[%emt 0:01:02]} 28. Ra2 {[%emt 0:01:11]} Qc1 {[%emt 0:00:05]} 29. Nb3 {[%emt 0:00:15]} Qf4 {[%emt 0:00:36]} 30. b7 {[%emt 0:03:17]} Rxc3 {[%emt 0:01:01]} 31. Rxc3 {[%emt 0:00:14]} Bxc3 {[%emt 0:00:22]} 32. b8=Q {[%emt 0:00:33]} Rxb8 {[%emt 0:00:02]} 33. Bxb8 {[%emt 0:00:08]} Bb5 {[%emt 0:00:42]} 34. Qxb5 {[%emt 0:04:39]} Qg4+ {[%emt 0:00:38]} 35. Kf1 {[%emt 0:00:28]} Qd1+ {[%emt 0:00:13]} 36. Kg2 {[%emt 0:00:09]} Qg4+ {[%emt 0:00:42]} 37. Kf1 {[%emt 0:00:13]} 1/2-1/2

[Event "EYCC Open-U18 2019"]
[Site "Bratislava"]
[Date "2019.08.03"]
[Round "2.40"]
[White "Godzwon, Iwo"]
[Black "Varga, Lukas"]
[Result "1-0"]
[ECO "B97"]
[WhiteElo "2285"]
[BlackElo "2046"]
[Annotator "NA"]
[PlyCount "65"]
[EventDate "2019.08.02"]
[EventType "swiss"]
[EventCountry "SVK"]
[SourceTitle "playchess.com"]
[Source "ChessBase"]
[SourceQuality "1"]
[TimeControl "40/5400+30:1800+30"]

1. e4 {[%emt 0:00:00]} c5 {[%emt 0:00:00]} 2. Nf3 {[%emt 0:00:00]} d6 {[%emt 0:00:00]} 3. d4 {[%emt 0:00:00]} cxd4 {[%emt 0:00:00]} 4. Nxd4 {[%emt 0:00:00]} Nf6 {[%emt 0:00:08]} 5. Nc3 {[%emt 0:00:00]} a6 {[%emt 0:00:09]} 6. Bg5 {[%emt 0:01:07]} e6 {[%emt 0:00:11]} 7. f4 {[%emt 0:00:08]} Qb6 {[%emt 0:01:38]} 8. Qd3 {[%emt 0:13:31]} Qxb2 {[%emt 0:00:37]} 9. Rb1 {[%emt 0:02:26]} Qa3 {[%emt 0:00:09]} 10. f5 {[%emt 0:05:43]} Be7 {[%emt 0:03:31]} 11. fxe6 {[%emt 0:13:15]} fxe6 {[%emt 0:02:53]} 12. Be2 {[%emt 0:10:20]} Nc6 {[%emt 0:12:02]} 13. Nxc6 {[%emt 0:08:56]} bxc6 {[%emt 0:00:10]} 14. O-O {[%emt 0:01:01]} O-O {[%emt 0:06:16]} 15. Nd5 {[%emt 0:07:21]} Qxd3 {[%emt 0:01:12]} 16. Nxe7+ {[%emt 0:00:04]} Kf7 {[%emt 0:00:14]} 17. Bxd3 {[%emt 0:00:03]} Kxe7 {[%emt 0:00:12]} 18. e5 {[%emt 0:00:02]} dxe5 {[%emt 0:00:32]} 19. Bxh7 {[%emt 0:00:03]} Kd6 {[%emt 0:05:38]} 20. Rfd1+ {[%emt 0:04:35]} Kc7 {[%emt 0:01:09]} 21. Bd3 {[%emt 0:00:17]} Bb7 {[%emt 0:12:34]} 22. Re1 {[%emt 0:06:33]} Nd7 {[%emt 0:02:44]} 23. Bd2 {[%emt 0:00:15]} Rae8 {[%emt 0:03:37]} 24. Ba5+ {[%emt 0:04:22]} Kc8 {[%emt 0:00:09]} 25. Bc3 {[%emt 0:00:58]} Rf5 {[%emt 0:02:41]} 26. Rb2 {[%emt 0:02:13]} Nc5 {[%emt 0:12:09]} 27. Bxf5 {[%emt 0:00:05]} exf5 {[%emt 0:00:59]} 28. Rxe5 {[%emt 0:00:05]} Rxe5 {[%emt 0:00:51]} 29. Bxe5 {[%emt 0:00:04]} g5 {[%emt 0:00:48]} 30. Rb1 {[%emt 0:00:55]} Ne4 {[%emt 0:00:39]} 31. Rf1 {[%emt 0:00:21]} Kd7 {[%emt 0:00:46]} 32. Rxf5 {[%emt 0:00:56]} Ke6 {[%emt 0:00:48]} 33. g4 {[%emt 0:00:03]} 1-0